[Event "MČR v rapid šachu družstev 2019"]
[Site "Teplice, Czech Republic"]
[Date "2019.09.15"]
[Round "6.21"]
[White "Liska, Jiri"]
[Black "Babicka, Michal"]
[Result "1-0"]
[TimeControl "15 min. + 5s"]
[WhiteElo "2213"]
[BlackElo "2010"]

1. e4 {[%clk 00:15:08]} {[%emt 00:00:02]} c5 {[%clk 00:15:09]} {[%emt
00:00:01]} 2. Nf3 {[%clk 00:15:11]} {[%emt 00:00:02]} d6 {[%clk 00:15:13]} 3.
c3 {[%clk 00:15:15]} {[%emt 00:00:01]} Nf6 {[%clk 00:15:12]} {[%emt 00:00:06]}
4. Be2 {[%clk 00:15:18]} {[%emt 00:00:02]} g6 {[%clk 00:14:52]} {[%emt
00:00:25]} 5. O-O {[%clk 00:15:19]} {[%emt 00:00:03]} Bg7 {[%clk 00:14:56]}
{[%emt 00:00:01]} 6. Bb5+ {[%clk 00:15:23]} {[%emt 00:00:02]} Bd7 {[%clk
00:14:59]} {[%emt 00:00:02]} 7. Bxd7+ {[%clk 00:15:25]} {[%emt 00:00:02]} Qxd7
{[%clk 00:14:48]} {[%emt 00:00:15]} 8. Re1 {[%clk 00:15:27]} {[%emt 00:00:05]}
Nc6 {[%clk 00:14:52]} {[%emt 00:00:01]} 9. d4 {[%clk 00:15:20]} {[%emt
00:00:11]} cxd4 {[%clk 00:14:55]} {[%emt 00:00:02]} 10. cxd4 {[%clk 00:15:24]}
{[%emt 00:00:01]} O-O {[%clk 00:14:51]} {[%emt 00:00:08]} 11. Nc3 {[%clk
00:15:24]} {[%emt 00:00:07]} Rfd8 {[%clk 00:14:21]} {[%emt 00:00:34]} 12. h3
{[%clk 00:15:17]} {[%emt 00:00:12]} a6 {[%clk 00:14:22]} {[%emt 00:00:05]} 13.
Bg5 {[%clk 00:14:58]} {[%emt 00:00:23]} b5 {[%clk 00:14:02]} {[%emt 00:00:27]}
14. Rc1 {[%clk 00:14:05]} {[%emt 00:00:57]} d5 {[%clk 00:11:46]} {[%emt
00:02:21]} 15. Bxf6 {[%clk 00:13:13]} {[%emt 00:00:57]} exf6 {[%clk 00:10:24]}
{[%emt 00:01:27]} 16. Nxd5 {[%clk 00:13:11]} {[%emt 00:00:06]} Ra7 {[%clk
00:09:41]} {[%emt 00:00:49]} 17. Qc2 {[%clk 00:12:58]} {[%emt 00:00:17]} f5
{[%clk 00:08:47]} {[%emt 00:01:00]} 18. Qxc6 {[%clk 00:12:55]} {[%emt
00:00:08]} Qxc6 {[%clk 00:08:51]} 19. Rxc6 {[%clk 00:12:58]} {[%emt 00:00:01]}
fxe4 {[%clk 00:08:55]} 20. Rxe4 {[%clk 00:12:56]} {[%emt 00:00:07]} f5 {[%clk
00:08:22]} {[%emt 00:00:39]} 21. Re7 {[%clk 00:12:39]} {[%emt 00:00:22]} Rxe7
{[%clk 00:06:17]} {[%emt 00:02:09]} 22. Nxe7+ {[%clk 00:12:43]} {[%emt
00:00:02]} Kf8 {[%clk 00:06:21]} 23. Nc8 {[%clk 00:12:36]} {[%emt 00:00:11]}
Bxd4 {[%clk 00:05:52]} {[%emt 00:00:34]} 24. Nxd4 {[%clk 00:12:36]} {[%emt
00:00:05]} Rxd4 {[%clk 00:05:57]} {[%emt 00:00:02]} 25. Rxa6 {[%clk 00:12:37]}
{[%emt 00:00:04]} Rd1+ {[%clk 00:06:00]} 26. Kh2 {[%clk 00:12:40]} {[%emt
00:00:02]} Rd2 {[%clk 00:06:04]} {[%emt 00:00:01]} 27. b3 {[%clk 00:12:40]}
{[%emt 00:00:05]} Rxf2 {[%clk 00:06:08]} {[%emt 00:00:02]} 28. a4 {[%clk
00:12:43]} {[%emt 00:00:02]} bxa4 {[%clk 00:06:11]} {[%emt 00:00:01]} 29. bxa4
{[%clk 00:12:42]} {[%emt 00:00:06]} Kg7 {[%clk 00:06:12]} {[%emt 00:00:05]} 30.
Nd6 {[%clk 00:12:41]} {[%emt 00:00:06]} f4 {[%clk 00:06:12]} {[%emt 00:00:05]}
31. Ne4 {[%clk 00:12:40]} {[%emt 00:00:06]} Re2 {[%clk 00:06:14]} {[%emt
00:00:03]} 32. Ng5 {[%clk 00:12:43]} {[%emt 00:00:02]} h6 {[%clk 00:06:06]}
{[%emt 00:00:13]} 33. Nf3 {[%clk 00:12:45]} {[%emt 00:00:02]} g5 {[%clk
00:06:08]} {[%emt 00:00:03]} 34. Ra5 {[%clk 00:12:40]} {[%emt 00:00:10]} Kg6
{[%clk 00:06:10]} {[%emt 00:00:03]} 35. Re5 {[%clk 00:12:40]} {[%emt 00:00:05]}
Ra2 {[%clk 00:06:14]} {[%emt 00:00:02]} 36. a5 {[%clk 00:12:44]} {[%emt
00:00:01]} Kf6 {[%clk 00:06:15]} {[%emt 00:00:04]} 37. Rb5 {[%clk 00:12:46]}
{[%emt 00:00:03]} Kg6 {[%clk 00:06:15]} {[%emt 00:00:04]} 38. Rb6+ {[%clk
00:12:43]} {[%emt 00:00:09]} Kh5 {[%clk 00:06:18]} {[%emt 00:00:02]} 39. a6
{[%clk 00:12:43]} {[%emt 00:00:04]} Ra5 {[%clk 00:06:12]} {[%emt 00:00:11]} 40.
Nd4 {[%clk 00:12:25]} {[%emt 00:00:23]} g4 {[%clk 00:05:58]} {[%emt 00:00:20]}
41. hxg4+ {[%clk 00:12:23]} {[%emt 00:00:07]} Kxg4 {[%clk 00:06:01]} {[%emt
00:00:02]} 42. Nc6 {[%clk 00:11:54]} {[%emt 00:00:33]} Ra2 {[%clk 00:06:02]}
{[%emt 00:00:05]} 43. Nb4 {[%clk 00:11:08]} {[%emt 00:00:51]} Ra4 {[%clk
00:05:46]} {[%emt 00:00:21]} 44. Rb7 {[%clk 00:11:03]} {[%emt 00:00:09]} h5
{[%clk 00:05:36]} {[%emt 00:00:15]} 45. a7 {[%clk 00:11:02]} {[%emt 00:00:07]}
Ra3 {[%clk 00:05:17]} {[%emt 00:00:23]} 46. Nc6 {[%clk 00:10:35]} {[%emt
00:00:32]} Ra2 {[%clk 00:04:52]} {[%emt 00:00:30]} 47. Rb8 {[%clk 00:10:10]}
{[%emt 00:00:30]} f3 {[%clk 00:04:55]} {[%emt 00:00:02]} 48. a8=Q {[%clk
00:10:04]} {[%emt 00:00:12]} Rxg2+ {[%clk 00:04:31]} {[%emt 00:00:29]} 49. Kh1
{[%clk 00:10:07]} {[%emt 00:00:01]} Kh3 {[%clk 00:04:24]} {[%emt 00:00:12]} 50.
Rf8 {[%clk 00:09:40]} {[%emt 00:00:32]} Rg3 {[%clk 00:04:11]} {[%emt 00:00:18]}
51. Qc8+ {[%clk 00:09:42]} {[%emt 00:00:03]} 1-0

[Event "MČR v rapid šachu družstev 2019"]
[Site "Teplice, Czech Republic"]
[Date "2019.09.15"]
[Round "6.22"]
[White "Vales, Vaclav"]
[Black "Vltavsky, Vladimir"]
[Result "1-0"]
[TimeControl "15 min. + 5s"]
[WhiteElo "2110"]
[BlackElo "2146"]

1. d4 {[%clk 00:15:07]} {[%emt 00:00:02]} Nf6 {[%clk 00:15:09]} 2. Nf3 {[%clk
00:15:11]} e6 {[%clk 00:15:13]} {[%emt 00:00:03]} 3. c4 {[%clk 00:15:15]} Bb4+
{[%clk 00:15:15]} {[%emt 00:00:02]} 4. Bd2 {[%clk 00:15:18]} {[%emt 00:00:02]}
Qe7 {[%clk 00:15:12]} {[%emt 00:00:08]} 5. g3 {[%clk 00:15:11]} {[%emt
00:00:12]} Ne4 {[%clk 00:15:09]} {[%emt 00:00:09]} 6. Bg2 {[%clk 00:15:13]}
{[%emt 00:00:03]} Bxd2+ {[%clk 00:14:54]} {[%emt 00:00:20]} 7. Nfxd2 {[%clk
00:15:16]} {[%emt 00:00:02]} Nxd2 {[%clk 00:14:56]} {[%emt 00:00:02]} 8. Qxd2
{[%clk 00:15:17]} {[%emt 00:00:04]} d6 {[%clk 00:14:44]} {[%emt 00:00:18]} 9.
O-O {[%clk 00:14:39]} {[%emt 00:00:43]} O-O {[%clk 00:14:22]} {[%emt 00:00:26]}
10. Nc3 {[%clk 00:14:23]} {[%emt 00:00:21]} c6 {[%clk 00:13:57]} {[%emt
00:00:30]} 11. b4 {[%clk 00:13:47]} {[%emt 00:00:41]} d5 {[%clk 00:13:20]}
{[%emt 00:00:43]} 12. c5 {[%clk 00:13:18]} {[%emt 00:00:33]} f5 {[%clk
00:11:28]} {[%emt 00:01:58]} 13. a4 {[%clk 00:12:57]} {[%emt 00:00:25]} Nd7
{[%clk 00:11:14]} {[%emt 00:00:20]} 14. b5 {[%clk 00:12:52]} {[%emt 00:00:09]}
Nf6 {[%clk 00:11:10]} {[%emt 00:00:09]} 15. Na2 {[%clk 00:11:46]} {[%emt
00:01:11]} e5 {[%clk 00:10:56]} {[%emt 00:00:19]} 16. e3 {[%clk 00:11:43]}
{[%emt 00:00:08]} Ne4 {[%clk 00:10:18]} {[%emt 00:00:44]} 17. Bxe4 {[%clk
00:11:02]} {[%emt 00:00:46]} fxe4 {[%clk 00:10:17]} {[%emt 00:00:06]} 18. dxe5
{[%clk 00:10:44]} {[%emt 00:00:23]} Qxe5 {[%clk 00:10:16]} {[%emt 00:00:05]} 19.
Qd4 {[%clk 00:10:38]} {[%emt 00:00:11]} Qh5 {[%clk 00:10:16]} {[%emt 00:00:05]}
20. Nb4 {[%clk 00:08:55]} {[%emt 00:01:48]} Bh3 {[%clk 00:10:10]} {[%emt
00:00:12]} 21. f4 {[%clk 00:08:24]} {[%emt 00:00:36]} Bxf1 {[%clk 00:09:15]}
{[%emt 00:00:59]} 22. Rxf1 {[%clk 00:08:24]} {[%emt 00:00:05]} Rf6 {[%clk
00:09:11]} {[%emt 00:00:09]} 23. a5 {[%clk 00:08:17]} {[%emt 00:00:12]} a6
{[%clk 00:09:05]} {[%emt 00:00:11]} 24. b6 {[%clk 00:08:11]} {[%emt 00:00:12]}
Qf7 {[%clk 00:08:36]} {[%emt 00:00:34]} 25. Nc2 {[%clk 00:06:02]} {[%emt
00:02:14]} h5 {[%clk 00:08:30]} {[%emt 00:00:11]} 26. Qe5 {[%clk 00:06:00]}
{[%emt 00:00:07]} Re8 {[%clk 00:08:24]} {[%emt 00:00:11]} 27. Qc3 {[%clk
00:05:50]} {[%emt 00:00:14]} Rg6 {[%clk 00:08:00]} {[%emt 00:00:29]} 28. Nd4
{[%clk 00:05:23]} {[%emt 00:00:33]} h4 {[%clk 00:07:53]} {[%emt 00:00:12]} 29.
f5 {[%clk 00:05:17]} {[%emt 00:00:11]} Rg4 {[%clk 00:07:37]} {[%emt 00:00:21]}
30. Kg2 {[%clk 00:05:14]} {[%emt 00:00:08]} Qf6 {[%clk 00:07:08]} {[%emt
00:00:33]} 31. Kh3 {[%clk 00:04:17]} {[%emt 00:01:03]} Rg5 {[%clk 00:06:44]}
{[%emt 00:00:28]} 32. g4 {[%clk 00:04:11]} {[%emt 00:00:12]} g6 {[%clk
00:06:19]} {[%emt 00:00:29]} 33. Qe1 {[%clk 00:03:49]} {[%emt 00:00:27]} gxf5
{[%clk 00:06:10]} {[%emt 00:00:14]} 34. Nxf5 {[%clk 00:03:09]} {[%emt
00:00:45]} Qh8 {[%clk 00:03:29]} {[%emt 00:02:46]} 35. Qxh4 {[%clk 00:03:08]}
{[%emt 00:00:06]} Qxh4+ {[%clk 00:03:27]} {[%emt 00:00:08]} 36. Kxh4 {[%clk
00:03:12]} {[%emt 00:00:01]} Rg6 {[%clk 00:03:30]} {[%emt 00:00:02]} 37. g5
{[%clk 00:02:58]} {[%emt 00:00:19]} Rge6 {[%clk 00:03:24]} {[%emt 00:00:10]} 38.
Nd4 {[%clk 00:02:29]} {[%emt 00:00:34]} R6e7 {[%clk 00:03:23]} {[%emt
00:00:06]} 39. Kg4 {[%clk 00:02:18]} {[%emt 00:00:17]} Rg7 {[%clk 00:03:05]}
{[%emt 00:00:22]} 40. h4 {[%clk 00:02:19]} {[%emt 00:00:04]} Re5 {[%clk
00:03:10]} {[%emt 00:00:01]} 41. Rf6 {[%clk 00:01:59]} {[%emt 00:00:25]} Kh7
{[%clk 00:03:03]} {[%emt 00:00:12]} 42. Nf5 {[%clk 00:01:50]} {[%emt 00:00:13]}
Rd7 {[%clk 00:02:57]} {[%emt 00:00:12]} 43. g6+ {[%clk 00:01:43]} {[%emt
00:00:12]} Kg8 {[%clk 00:02:57]} {[%emt 00:00:05]} 44. h5 {[%clk 00:01:44]}
{[%emt 00:00:04]} d4 {[%clk 00:02:32]} {[%emt 00:00:30]} 45. exd4 {[%clk
00:01:33]} {[%emt 00:00:15]} Rxf5 {[%clk 00:02:30]} {[%emt 00:00:07]} 46. Kxf5
{[%clk 00:01:30]} {[%emt 00:00:08]} e3 {[%clk 00:02:34]} {[%emt 00:00:01]} 47.
Re6 {[%clk 00:01:22]} {[%emt 00:00:13]} Kg7 {[%clk 00:02:31]} {[%emt 00:00:09]}
48. Rxe3 {[%clk 00:01:12]} {[%emt 00:00:15]} Rd5+ {[%clk 00:02:23]} {[%emt
00:00:13]} 49. Re5 {[%clk 00:01:12]} {[%emt 00:00:04]} Rxd4 {[%clk 00:02:27]}
50. Re7+ {[%clk 00:01:16]} Kf8 {[%clk 00:02:32]} {[%emt 00:00:01]} 51. Rxb7
{[%clk 00:01:15]} {[%emt 00:00:05]} 1-0

[Event "MČR v rapid šachu družstev 2019"]
[Site "Teplice, Czech Republic"]
[Date "2019.09.15"]
[Round "6.23"]
[White "Marsalek, Zdenek"]
[Black "Janda, Zdenek"]
[Result "1/2-1/2"]
[TimeControl "15 min. + 5s"]
[WhiteElo "2278"]
[BlackElo "2008"]

1. d4 {[%clk 00:15:10]} {[%emt 00:04:49]} c5 {[%clk 00:15:08]} {[%emt
00:00:03]} 2. dxc5 {[%clk 00:15:09]} {[%emt 00:00:06]} Na6 {[%clk 00:15:10]}
{[%emt 00:00:04]} 3. e4 {[%clk 00:15:08]} {[%emt 00:00:05]} Nxc5 {[%clk
00:15:11]} {[%emt 00:00:04]} 4. Nc3 {[%clk 00:15:11]} {[%emt 00:00:02]} d6
{[%clk 00:15:05]} {[%emt 00:00:11]} 5. Be3 {[%clk 00:15:02]} {[%emt 00:00:14]}
b6 {[%clk 00:15:04]} {[%emt 00:00:06]} 6. Nf3 {[%clk 00:14:57]} {[%emt
00:00:09]} Bb7 {[%clk 00:15:04]} {[%emt 00:00:06]} 7. Bb5+ {[%clk 00:14:53]}
{[%emt 00:00:09]} Nd7 {[%clk 00:15:00]} {[%emt 00:00:09]} 8. e5 {[%clk
00:14:48]} {[%emt 00:00:11]} a6 {[%clk 00:14:57]} {[%emt 00:00:07]} 9. Bxd7+
{[%clk 00:14:48]} {[%emt 00:00:04]} Qxd7 {[%clk 00:15:00]} {[%emt 00:00:03]} 10.
exd6 {[%clk 00:14:30]} {[%emt 00:00:23]} Qxd6 {[%clk 00:14:36]} {[%emt
00:00:29]} 11. Qxd6 {[%clk 00:14:18]} {[%emt 00:00:17]} exd6 {[%clk 00:14:40]}
{[%emt 00:00:01]} 12. O-O-O {[%clk 00:14:16]} {[%emt 00:00:07]} b5 {[%clk
00:14:28]} {[%emt 00:00:17]} 13. Nd5 {[%clk 00:14:14]} {[%emt 00:00:07]} O-O-O
{[%clk 00:14:06]} {[%emt 00:00:26]} 14. Ng5 {[%clk 00:14:04]} {[%emt 00:00:15]}
Nh6 {[%clk 00:13:58]} {[%emt 00:00:13]} 15. h3 {[%clk 00:13:39]} {[%emt
00:00:30]} Bxd5 {[%clk 00:13:40]} {[%emt 00:00:23]} 16. Rxd5 {[%clk 00:13:41]}
{[%emt 00:00:02]} Be7 {[%clk 00:13:38]} {[%emt 00:00:08]} 17. Ne4 {[%clk
00:13:40]} {[%emt 00:00:07]} f5 {[%clk 00:11:59]} {[%emt 00:01:44]} 18. Bxh6
{[%clk 00:13:32]} {[%emt 00:00:13]} fxe4 {[%clk 00:12:02]} {[%emt 00:00:02]} 19.
Bf4 {[%clk 00:13:18]} {[%emt 00:00:19]} Rhf8 {[%clk 00:11:44]} {[%emt
00:00:23]} 20. Be3 {[%clk 00:12:57]} {[%emt 00:00:25]} Kc7 {[%clk 00:11:41]}
{[%emt 00:00:09]} 21. a4 {[%clk 00:12:54]} {[%emt 00:00:08]} Kc6 {[%clk
00:11:40]} {[%emt 00:00:05]} 22. Rhd1 {[%clk 00:12:57]} {[%emt 00:00:02]} g6
{[%clk 00:11:22]} {[%emt 00:00:24]} 23. g3 {[%clk 00:12:39]} {[%emt 00:00:22]}
Rf5 {[%clk 00:11:21]} {[%emt 00:00:07]} 24. axb5+ {[%clk 00:12:33]} {[%emt
00:00:12]} axb5 {[%clk 00:11:23]} {[%emt 00:00:02]} 25. R5d4 {[%clk 00:12:28]}
{[%emt 00:00:10]} d5 {[%clk 00:11:08]} {[%emt 00:00:20]} 26. c3 {[%clk
00:11:39]} {[%emt 00:00:54]} Bc5 {[%clk 00:11:04]} {[%emt 00:00:09]} 27. Rxe4
{[%emt 00:00:15]} dxe4 {[%clk 00:10:14]} {[%emt 00:00:52]} 28. Rxd8 {[%clk
00:11:33]} {[%emt 00:00:04]} Bxe3+ {[%clk 00:10:16]} {[%emt 00:00:03]} 29. fxe3
{[%clk 00:11:32]} {[%emt 00:00:01]} Rf3 {[%clk 00:10:19]} {[%emt 00:00:02]} 30.
Rh8 {[%clk 00:11:27]} {[%emt 00:00:14]} Rxe3 {[%clk 00:10:12]} {[%emt
00:00:12]} 1/2-1/2

[Event "MČR v rapid šachu družstev 2019"]
[Site "Teplice, Czech Republic"]
[Date "2019.09.15"]
[Round "6.24"]
[White "Havranek, Tomas"]
[Black "Duran, Tomas"]
[Result "1-0"]
[TimeControl "15 min. + 5s"]
[WhiteElo "2023"]
[BlackElo "2135"]

1. e4 {[%clk 00:15:09]} d6 {[%clk 00:15:08]} {[%emt 00:00:03]} 2. d4 {[%emt
00:00:01]} Nf6 3. Nc3 {[%clk 00:15:10]} {[%emt 00:00:02]} e5 {[%clk 00:15:08]}
{[%emt 00:00:04]} 4. Nf3 {[%clk 00:14:58]} {[%emt 00:00:17]} Nbd7 {[%clk
00:15:07]} {[%emt 00:00:05]} 5. h3 {[%clk 00:14:58]} {[%emt 00:00:07]} Be7
{[%clk 00:15:01]} {[%emt 00:00:11]} 6. Be3 {[%clk 00:14:55]} {[%emt 00:00:07]}
c6 {[%clk 00:14:38]} {[%emt 00:00:28]} 7. g4 {[%clk 00:13:54]} {[%emt
00:01:07]} g6 {[%clk 00:13:05]} {[%emt 00:01:37]} 8. Bh6 {[%clk 00:13:31]}
{[%emt 00:00:28]} Bf8 {[%clk 00:12:48]} {[%emt 00:00:22]} 9. Qd2 {[%clk
00:13:12]} {[%emt 00:00:24]} Bxh6 {[%clk 00:11:26]} {[%emt 00:01:27]} 10. Qxh6
{[%clk 00:13:16]} {[%emt 00:00:01]} Ng8 {[%clk 00:11:30]} {[%emt 00:00:01]} 11.
Qd2 {[%clk 00:13:06]} {[%emt 00:00:15]} Qf6 {[%clk 00:11:24]} {[%emt 00:00:12]}
12. Bg2 {[%clk 00:12:52]} {[%emt 00:00:18]} h5 {[%clk 00:10:05]} {[%emt
00:01:25]} 13. O-O-O {[%clk 00:12:06]} {[%emt 00:00:51]} Nb6 {[%clk 00:09:22]}
{[%emt 00:00:47]} 14. dxe5 {[%clk 00:11:59]} {[%emt 00:00:12]} dxe5 {[%clk
00:09:25]} {[%emt 00:00:02]} 15. Nxe5 {[%clk 00:11:18]} {[%emt 00:00:46]} Be6
{[%clk 00:05:46]} {[%emt 00:03:45]} 16. f4 {[%clk 00:10:23]} {[%emt 00:00:59]}
g5 {[%clk 00:04:26]} {[%emt 00:01:24]} 17. Nd3 {[%clk 00:09:08]} {[%emt
00:01:21]} gxf4 {[%clk 00:02:20]} {[%emt 00:02:11]} 18. e5 {[%clk 00:08:17]}
{[%emt 00:00:56]} Qh6 {[%clk 00:01:39]} {[%emt 00:00:47]} 19. Ne4 {[%clk
00:07:46]} {[%emt 00:00:35]} Nc4 {[%clk 00:00:26]} {[%emt 00:01:18]} 20. Qxf4
{[%clk 00:07:39]} {[%emt 00:00:12]} hxg4 {[%emt 00:00:14]} 21. Ng5 {[%clk
00:06:46]} {[%emt 00:00:58]} gxh3 {[%clk 00:00:11]} {[%emt 00:00:11]} 22. Rxh3
{[%clk 00:05:38]} {[%emt 00:01:13]} Qg7 {[%clk 00:00:08]} {[%emt 00:00:08]} 23.
Rxh8 {[%clk 00:05:03]} {[%emt 00:00:40]} Qxh8 {[%clk 00:00:12]} {[%emt
00:00:01]} 24. Nxe6 {[%emt 00:00:27]} Qh6 {[%emt 00:00:01]} 1-0

[Event "MČR v rapid šachu družstev 2019"]
[Site "Teplice, Czech Republic"]
[Date "2019.09.15"]
[Round "6.25"]
[White "Bujak, Michal"]
[Black "Rubes, Jan"]
[Result "1/2-1/2"]
[TimeControl "15 min. + 5s"]
[WhiteElo "2170"]
[BlackElo "2345"]

1. e4 {[%clk 00:15:08]} {[%emt 00:00:01]} c5 {[%clk 00:15:08]} {[%emt
00:00:02]} 2. Nf3 {[%clk 00:15:11]} {[%emt 00:00:02]} Nc6 {[%clk 00:15:12]} 3.
d4 {[%clk 00:15:15]} {[%emt 00:00:02]} cxd4 {[%clk 00:15:15]} {[%emt 00:00:02]}
4. Nxd4 {[%clk 00:15:19]} {[%emt 00:00:02]} e5 {[%clk 00:15:19]} 5. Nb5 {[%clk
00:15:21]} {[%emt 00:00:03]} d6 {[%clk 00:15:21]} {[%emt 00:00:02]} 6. a4
{[%clk 00:15:22]} {[%emt 00:00:05]} a6 {[%clk 00:15:23]} {[%emt 00:00:03]} 7.
N5a3 {[%clk 00:15:25]} {[%emt 00:00:01]} Be7 {[%clk 00:15:23]} {[%emt
00:00:04]} 8. Nc3 {[%clk 00:15:18]} {[%emt 00:00:13]} Nf6 {[%clk 00:15:26]}
{[%emt 00:00:02]} 9. Bg5 {[%clk 00:15:19]} {[%emt 00:00:04]} O-O {[%clk
00:15:13]} {[%emt 00:00:19]} 10. Bxf6 {[%clk 00:15:11]} {[%emt 00:00:13]} Bxf6
{[%clk 00:15:16]} {[%emt 00:00:01]} 11. Bc4 {[%clk 00:15:12]} {[%emt 00:00:03]}
Bg5 {[%clk 00:14:42]} {[%emt 00:00:39]} 12. Nd5 {[%clk 00:13:21]} {[%emt
00:01:57]} Be6 {[%clk 00:14:24]} {[%emt 00:00:22]} 13. c3 {[%clk 00:12:53]}
{[%emt 00:00:34]} Rc8 {[%clk 00:13:57]} {[%emt 00:00:32]} 14. O-O {[%clk
00:09:53]} {[%emt 00:03:05]} Kh8 {[%clk 00:13:57]} {[%emt 00:00:06]} 15. Qe2
{[%clk 00:08:21]} {[%emt 00:01:36]} f5 {[%clk 00:13:53]} {[%emt 00:00:09]} 16.
Nb6 {[%clk 00:08:03]} {[%emt 00:00:22]} Qxb6 {[%clk 00:10:41]} {[%emt
00:03:18]} 17. Bxe6 {[%clk 00:07:56]} {[%emt 00:00:13]} Rce8 {[%clk 00:10:22]}
{[%emt 00:00:23]} 18. Nc4 {[%clk 00:06:49]} {[%emt 00:01:12]} Qc7 {[%clk
00:10:16]} {[%emt 00:00:11]} 19. exf5 {[%clk 00:06:23]} {[%emt 00:00:31]} Nd8
{[%clk 00:10:11]} {[%emt 00:00:10]} 20. Qg4 {[%clk 00:06:07]} {[%emt 00:00:20]}
Nxe6 {[%clk 00:09:50]} {[%emt 00:00:27]} 21. fxe6 {[%clk 00:06:04]} {[%emt
00:00:08]} Rf4 {[%clk 00:09:42]} {[%emt 00:00:13]} 22. Qxg5 {[%clk 00:05:49]}
{[%emt 00:00:19]} Qxc4 {[%clk 00:09:46]} {[%emt 00:00:02]} 23. e7 {[%clk
00:05:38]} {[%emt 00:00:17]} Rf6 {[%clk 00:09:42]} {[%emt 00:00:08]} 24. Rad1
{[%clk 00:03:19]} {[%emt 00:02:24]} Qc6 {[%clk 00:09:31]} {[%emt 00:00:16]} 25.
g3 {[%clk 00:02:12]} {[%emt 00:01:13]} Rxe7 {[%clk 00:09:25]} {[%emt 00:00:10]}
26. f4 {[%clk 00:02:06]} {[%emt 00:00:12]} h6 {[%clk 00:09:14]} {[%emt
00:00:16]} 27. Qh4 {[%clk 00:01:44]} {[%emt 00:00:27]} e4 {[%clk 00:09:00]}
{[%emt 00:00:18]} 28. Rfe1 {[%clk 00:01:29]} {[%emt 00:00:21]} e3 {[%clk
00:08:53]} {[%emt 00:00:12]} 29. Rd4 {[%clk 00:01:19]} {[%emt 00:00:15]} Qf3
{[%clk 00:07:48]} {[%emt 00:01:09]} 30. Rf1 {[%clk 00:01:12]} {[%emt 00:00:12]}
Qe2 {[%clk 00:07:30]} {[%emt 00:00:23]} 31. Rxd6 {[%clk 00:01:12]} {[%emt
00:00:05]} g5 {[%clk 00:06:17]} {[%emt 00:01:18]} 32. Rd8+ {[%clk 00:00:43]}
{[%emt 00:00:35]} Kh7 {[%clk 00:05:40]} {[%emt 00:00:42]} 33. Qh3 {[%clk
00:00:45]} {[%emt 00:00:02]} gxf4 {[%clk 00:02:26]} {[%emt 00:03:19]} 34. Qc8
{[%clk 00:00:39]} {[%emt 00:00:11]} h5 {[%clk 00:01:16]} {[%emt 00:01:16]} 35.
Rh8+ {[%clk 00:00:20]} {[%emt 00:00:23]} Kg6 {[%clk 00:01:19]} {[%emt
00:00:02]} 36. Qg8+ {[%clk 00:00:11]} {[%emt 00:00:14]} Rg7 {[%clk 00:00:41]}
{[%emt 00:00:43]} 37. Qe8+ {[%clk 00:00:15]} {[%emt 00:00:01]} Rgf7 {[%clk
00:00:27]} {[%emt 00:00:20]} 38. Qg8+ {[%clk 00:00:14]} {[%emt 00:00:06]} Rg7
{[%clk 00:00:31]} {[%emt 00:00:01]} 39. Qe8+ {[%emt 00:00:02]} Rgf7 {[%emt
00:00:10]} 40. Qe4+ {[%emt 00:00:16]} Rf5 41. Rxf4 {[%emt 00:00:03]} Qd1+
{[%emt 00:00:11]} 42. Kg2 {[%emt 00:00:02]} e2 {[%emt 00:00:23]} 1/2-1/2

[Event "MČR v rapid šachu družstev 2019"]
[Site "Teplice, Czech Republic"]
[Date "2019.09.15"]
[Round "6.27"]
[White "Kupka, Frantisek"]
[Black "Kral, David"]
[Result "1-0"]
[TimeControl "15 min. + 5s"]
[WhiteElo "2061"]
[BlackElo "2029"]

1. e4 {[%clk 00:15:08]} {[%emt 00:00:02]} c5 {[%clk 00:15:10]} 2. Nf3 {[%emt
00:00:02]} Nc6 3. Bb5 {[%clk 00:15:08]} {[%emt 00:00:07]} e5 {[%clk 00:15:17]}
{[%emt 00:00:02]} 4. d3 {[%clk 00:14:51]} {[%emt 00:00:22]} d6 {[%clk
00:15:10]} {[%emt 00:00:12]} 5. Bxc6+ bxc6 6. h3 {[%clk 00:14:26]} f5 {[%clk
00:15:15]} {[%emt 00:00:05]} 7. exf5 {[%clk 00:14:26]} {[%emt 00:00:05]} Bxf5
{[%clk 00:15:19]} {[%emt 00:00:01]} 8. O-O {[%clk 00:14:14]} {[%emt 00:00:16]}
Nf6 {[%clk 00:15:15]} {[%emt 00:00:10]} 9. Nh4 {[%clk 00:12:11]} {[%emt
00:02:08]} Be6 {[%clk 00:13:34]} {[%emt 00:01:46]} 10. f4 {[%clk 00:11:54]}
{[%emt 00:00:21]} exf4 {[%clk 00:11:21]} {[%emt 00:02:18]} 11. Re1 {[%clk
00:10:22]} {[%emt 00:01:37]} Kd7 {[%clk 00:09:40]} {[%emt 00:01:47]} 12. Bxf4
{[%clk 00:10:08]} {[%emt 00:00:18]} Nd5 {[%clk 00:09:32]} {[%emt 00:00:14]} 13.
Bg3 {[%clk 00:09:43]} {[%emt 00:00:29]} g5 {[%clk 00:09:21]} {[%emt 00:00:16]}
14. Nf3 {[%clk 00:09:39]} {[%emt 00:00:08]} Qf6 {[%clk 00:09:11]} {[%emt
00:00:15]} 15. c3 {[%clk 00:08:02]} {[%emt 00:01:43]} h5 {[%clk 00:08:51]}
{[%emt 00:00:25]} 16. Nbd2 {[%clk 00:07:56]} {[%emt 00:00:11]} h4 {[%clk
00:07:49]} {[%emt 00:01:08]} 17. Ne4 {[%clk 00:07:42]} {[%emt 00:00:18]} Qg6
{[%clk 00:07:24]} {[%emt 00:00:30]} 18. Nxc5+ {[%clk 00:06:19]} {[%emt
00:01:29]} Kc8 {[%clk 00:04:45]} {[%emt 00:02:43]} 19. Rxe6 {[%clk 00:04:43]}
{[%emt 00:01:41]} Qg8 {[%emt 00:01:10]} 20. Qa4 {[%clk 00:03:13]} {[%emt
00:01:34]} Kc7 {[%clk 00:02:24]} {[%emt 00:01:23]} 21. Qa5+ {[%clk 00:02:26]}
{[%emt 00:00:51]} Nb6 {[%clk 00:02:19]} {[%emt 00:00:11]} 22. Qa6 {[%clk
00:02:15]} {[%emt 00:00:16]} Kd8 {[%clk 00:00:52]} {[%emt 00:01:32]} 23. Qb7
{[%clk 00:01:08]} {[%emt 00:01:11]} hxg3 {[%clk 00:00:40]} {[%emt 00:00:18]} 24.
Rae1 {[%clk 00:00:54]} {[%emt 00:00:19]} Qf7 {[%clk 00:00:06]} {[%emt
00:00:39]} 25. Qxf7 {[%emt 00:00:08]} 1-0